[Event "FIDE WSTC Open 50 2025"]
[Site "Prague"]
[Date "2025.02.18"]
[Round "2.33"]
[White "Csiszar, Csaba"]
[Black "Zimmermann, Luc"]
[Result "1-0"]
[Annotator "ChessBase"]
[ECO "A48"]
[WhiteElo "2378"]
[BlackElo "2177"]
[PlyCount "113"]
[EventDate "2025.02.17"]
[EventType "team-tourn"]
[EventCountry "CZE"]
[SourceTitle "playchess.com"]
[Source "ChessBase"]
[SourceQuality "1"]
[TimeControl "40/5400+30:1800+30"]

1. d4 {[%emt 0:00:03]} Nf6 {[%emt 0:00:03]} 2. Nf3 {[%emt 0:00:08]} g6 {[%emt 0:00:14]} 3. c4 {[%emt 0:00:05]} Bg7 {[%emt 0:00:07]} 4. Nc3 {[%emt 0:00:03]} O-O {[%emt 0:00:17]} 5. Bf4 {[%emt 0:00:04]} d5 {[%emt 0:00:20]} 6. Rc1 {[%emt 0:00:06]} Be6 {[%emt 0:00:43]} 7. e3 {[%emt 0:00:28]} dxc4 {[%emt 0:00:38]} 8. Ng5 {[%emt 0:00:07]} Bd5 {[%emt 0:00:15]} 9. e4 {[%emt 0:00:05]} h6 {[%emt 0:00:11]} 10. exd5 {[%emt 0:00:10]} hxg5 {[%emt 0:00:08]} 11. Bxg5 {[%emt 0:00:06]} Nxd5 {[%emt 0:00:08]} 12. Bxc4 {[%emt 0:00:10]} Nb6 {[%emt 0:00:06]} 13. Bb3 {[%emt 0:00:03]} Qxd4 {[%emt 0:00:13]} 14. Qxd4 {[%emt 0:01:27]} Bxd4 {[%emt 0:00:03]} 15. Nb5 {[%emt 0:00:25]} Bxb2 {[%emt 0:00:57]} 16. Rc2 {[%emt 0:00:19]} Be5 {[%emt 0:00:08]} 17. Nxc7 {[%emt 0:00:17]} Bxc7 {[%emt 0:00:17]} 18. Rxc7 {[%emt 0:00:08]} Nc6 {[%emt 0:01:47]} 19. Rxb7 {[%emt 0:00:52]} e6 {[%emt 0:01:03]} 20. Bd1 {[%emt 0:17:03]} Rab8 {[%emt 0:34:19]} 21. Rxb8 {[%emt 0:11:32]} Rxb8 {[%emt 0:00:07]} 22. h4 {[%emt 0:07:57]} Nd5 {[%emt 0:14:46]} 23. Bb3 {[%emt 0:12:40]} Nd4 {[%emt 0:11:08]} 24. Rh3 {[%emt 0:00:24]} Nxb3 {[%emt 0:01:12]} 25. Rxb3 {[%emt 0:00:22]} Rc8 {[%emt 0:02:25]} 26. Rb7 {[%emt 0:05:24]} a6 {[%emt 0:05:54]} 27. Ra7 {[%emt 0:05:23]} Rc6 {[%emt 0:00:25]} 28. Bd2 {[%emt 0:01:56]} Kg7 {[%emt 0:12:11]} 29. g3 {[%emt 0:02:34]} Kf6 {[%emt 0:02:05]} 30. a4 {[%emt 0:01:50]} e5 {[%emt 0:02:23]} 31. a5 {[%emt 0:01:26]} Ke6 {[%emt 0:03:51]} 32. g4 {[%emt 0:00:45]} Nf4 {[%emt 0:03:16]} 33. Bxf4 {[%emt 0:03:21]} exf4 {[%emt 0:00:02]} 34. Ke2 {[%emt 0:00:07]} f6 {[%emt 0:03:38]} 35. Kf3 {[%emt 0:03:55]} g5 {[%emt 0:00:14]} 36. h5 {[%emt 0:00:09]} f5 {[%emt 0:02:10]} 37. Rg7 {[%emt 0:06:48]} Rc3+ {[%emt 0:00:04]} 38. Kg2 {[%emt 0:00:06]} fxg4 {[%emt 0:00:33]} 39. Rxg5 {[%emt 0:00:10]} g3 {[%emt 0:00:42]} 40. fxg3 {[%emt 0:00:45]} fxg3 {[%emt 0:00:00]} 41. h6 {[%emt 0:33:28]} Kf7 {[%emt 0:17:59]} 42. Rg7+ {[%emt 0:00:00]} Kf6 {[%emt 0:02:32]} 43. Rg8 {[%emt 0:00:00]} Rc7 {[%emt 0:00:42]} 44. Kxg3 {[%emt 0:00:00]} Rc3+ {[%emt 0:07:09]} 45. Kf4 {[%emt 0:00:00]} Rc4+ {[%emt 0:00:08]} 46. Ke3 {[%emt 0:00:00]} Rh4 {[%emt 0:00:06]} 47. Ra8 {[%emt 0:00:00]} Ke5 {[%emt 0:01:15]} 48. Rxa6 {[%emt 0:00:00]} Rh3+ {[%emt 0:00:09]} 49. Kf2 {[%emt 0:00:00]} Kf4 {[%emt 0:03:11]} 50. Rf6+ {[%emt 0:00:00]} Kg5 {[%emt 0:01:16]} 51. Rc6 {[%emt 0:00:00]} Kf4 {[%emt 0:00:28]} 52. a6 {[%emt 0:00:00]} Rh2+ {[%emt 0:01:38]} 53. Ke1 {[%emt 0:00:00]} Rh5 {[%emt 0:00:42]} 54. a7 {[%emt 0:00:00]} Re5+ {[%emt 0:00:17]} 55. Kd2 {[%emt 0:00:00]} Re8 {[%emt 0:00:33]} 56. h7 {[%emt 0:00:00]} Kg5 {[%emt 0:00:50]} 57. Rb6 {[%emt 0:00:00]} 1-0

[Event "FIDE WSTC Open 50 2025"]
[Site "Prague"]
[Date "2025.02.18"]
[Round "2.34"]
[White "Frenken, Marcel"]
[Black "Czebe, Attila"]
[Result "0-1"]
[Annotator "ChessBase"]
[ECO "A02"]
[WhiteElo "2064"]
[BlackElo "2255"]
[PlyCount "72"]
[EventDate "2025.02.17"]
[EventType "team-tourn"]
[EventCountry "CZE"]
[SourceTitle "playchess.com"]
[Source "ChessBase"]
[SourceQuality "1"]
[TimeControl "40/5400+30:1800+30"]

1. f4 {[%emt 0:00:03]} b6 {[%emt 0:00:54]} 2. e4 {[%emt 0:00:50]} Bb7 {[%emt 0:00:11]} 3. d3 {[%emt 0:00:38]} g6 {[%emt 0:02:09]} 4. Nf3 {[%emt 0:00:11]} Bg7 {[%emt 0:00:04]} 5. c3 {[%emt 0:00:22]} Nf6 {[%emt 0:02:27]} 6. Be2 {[%emt 0:00:13]} O-O {[%emt 0:00:08]} 7. O-O {[%emt 0:00:12]} c5 {[%emt 0:00:08]} 8. Na3 {[%emt 0:00:46]} Nc6 {[%emt 0:00:33]} 9. Qe1 {[%emt 0:00:25]} Ne8 {[%emt 0:08:51]} 10. Be3 {[%emt 0:07:57]} d5 {[%emt 0:04:27]} 11. e5 {[%emt 0:15:37]} d4 {[%emt 0:00:57]} 12. cxd4 {[%emt 0:10:44]} Nxd4 {[%emt 0:01:37]} 13. Bxd4 {[%emt 0:00:57]} cxd4 {[%emt 0:00:04]} 14. Qf2 {[%emt 0:05:12]} f6 {[%emt 0:06:51]} 15. Nxd4 {[%emt 0:09:01]} Nc7 {[%emt 0:00:10]} 16. Bf3 {[%emt 0:15:26]} Bxf3 {[%emt 0:02:33]} 17. Nxf3 {[%emt 0:00:27]} fxe5 {[%emt 0:00:14]} 18. fxe5 {[%emt 0:00:16]} Bxe5 {[%emt 0:03:56]} 19. Nc4 {[%emt 0:00:15]} Bg7 {[%emt 0:00:31]} 20. Qg3 {[%emt 0:04:55]} Ne6 {[%emt 0:03:51]} 21. Nce5 {[%emt 0:04:44]} Nd4 {[%emt 0:04:49]} 22. Rae1 {[%emt 0:01:39]} Nxf3+ {[%emt 0:00:46]} 23. gxf3 {[%emt 0:04:47]} Rc8 {[%emt 0:07:05]} 24. Rf2 {[%emt 0:01:25]} Qd5 {[%emt 0:04:18]} 25. a3 {[%emt 0:08:27]} Rf5 {[%emt 0:01:10]} 26. f4 {[%emt 0:02:29]} Bxe5 {[%emt 0:01:07]} 27. fxe5 {[%emt 0:03:22]} Rxf2 {[%emt 0:00:08]} 28. Qxf2 {[%emt 0:01:17]} Rf8 {[%emt 0:00:04]} 29. Qe3 {[%emt 0:00:54]} Rf3 {[%emt 0:00:15]} 30. Qg5 {[%emt 0:00:35]} Qd4+ {[%emt 0:03:02]} 31. Kh1 {[%emt 0:00:24]} Qxd3 {[%emt 0:00:48]} 32. Qg2 {[%emt 0:00:55]} Kg7 {[%emt 0:01:30]} 33. e6 {[%emt 0:00:13]} Qf5 {[%emt 0:00:46]} 34. Kg1 {[%emt 0:00:36]} h5 {[%emt 0:01:11]} 35. Qd2 {[%emt 0:00:35]} Qg4+ {[%emt 0:02:06]} 36. Kh1 {[%emt 0:00:29]} Qf4 {[%emt 0:00:13]} 0-1

[Event "FIDE WSTC Open 50 2025"]
[Site "Prague"]
[Date "2025.02.18"]
[Round "2.35"]
[White "Horvath, Peter"]
[Black "Van der Zwet, Bart"]
[Result "1/2-1/2"]
[Annotator "ChessBase"]
[ECO "D36"]
[WhiteElo "2354"]
[BlackElo "1998"]
[PlyCount "97"]
[EventDate "2025.02.17"]
[EventType "team-tourn"]
[EventCountry "CZE"]
[SourceTitle "playchess.com"]
[Source "ChessBase"]
[SourceQuality "1"]
[TimeControl "40/5400+30:1800+30"]

1. d4 {[%emt 0:00:04]} Nf6 {[%emt 0:00:10]} 2. c4 {[%emt 0:00:15]} e6 {[%emt 0:00:18]} 3. Nc3 {[%emt 0:00:15]} d5 {[%emt 0:00:53]} 4. cxd5 {[%emt 0:00:56]} exd5 {[%emt 0:00:14]} 5. Bg5 {[%emt 0:00:34]} c6 {[%emt 0:00:17]} 6. Qc2 {[%emt 0:01:09]} Be7 {[%emt 0:03:00]} 7. e3 {[%emt 0:00:46]} Nbd7 {[%emt 0:03:38]} 8. Bd3 {[%emt 0:00:25]} O-O {[%emt 0:03:43]} 9. Nf3 {[%emt 0:00:15]} Re8 {[%emt 0:01:44]} 10. O-O {[%emt 0:00:19]} h6 {[%emt 0:02:09]} 11. Bf4 {[%emt 0:02:36]} Nf8 {[%emt 0:02:57]} 12. h3 {[%emt 0:03:44]} Bd6 {[%emt 0:03:59]} 13. Ne5 {[%emt 0:05:34]} Qe7 {[%emt 0:07:09]} 14. Rab1 {[%emt 0:04:46]} N6d7 {[%emt 0:06:42]} 15. Nxd7 {[%emt 0:03:07]} Nxd7 {[%emt 0:03:17]} 16. Bxd6 {[%emt 0:03:10]} Qxd6 {[%emt 0:00:10]} 17. b4 {[%emt 0:00:38]} Nf6 {[%emt 0:04:32]} 18. b5 {[%emt 0:06:09]} c5 {[%emt 0:04:24]} 19. dxc5 {[%emt 0:00:12]} Qxc5 {[%emt 0:00:22]} 20. Ne2 {[%emt 0:04:34]} Qxc2 {[%emt 0:03:46]} 21. Bxc2 {[%emt 0:00:13]} Be6 {[%emt 0:00:40]} 22. Bb3 {[%emt 0:16:09]} Rac8 {[%emt 0:00:14]} 23. Rbc1 {[%emt 0:00:13]} Kf8 {[%emt 0:01:42]} 24. a4 {[%emt 0:22:02]} Ke7 {[%emt 0:03:10]} 25. f3 {[%emt 0:00:53]} Rxc1 {[%emt 0:01:18]} 26. Rxc1 {[%emt 0:00:08]} Rc8 {[%emt 0:00:55]} 27. Rd1 {[%emt 0:00:10]} Rc5 {[%emt 0:01:21]} 28. Kf2 {[%emt 0:01:20]} a6 {[%emt 0:07:48]} 29. bxa6 {[%emt 0:04:44]} bxa6 {[%emt 0:00:07]} 30. g4 {[%emt 0:00:49]} Bd7 {[%emt 0:07:00]} 31. h4 {[%emt 0:04:05]} Be6 {[%emt 0:04:45]} 32. Rd4 {[%emt 0:03:13]} Ne8 {[%emt 0:05:35]} 33. Rb4 {[%emt 0:03:50]} Kd6 {[%emt 0:07:31]} 34. Nd4 {[%emt 0:00:58]} Kc7 {[%emt 0:00:28]} 35. Bd1 {[%emt 0:04:36]} Bd7 {[%emt 0:01:07]} 36. Rb2 {[%emt 0:02:53]} Rc4 {[%emt 0:03:32]} 37. Bb3 {[%emt 0:00:52]} Rb4 {[%emt 0:00:12]} 38. Rc2+ {[%emt 0:00:36]} Kd6 {[%emt 0:00:36]} 39. a5 {[%emt 0:00:43]} Nc7 {[%emt 0:00:33]} 40. Rd2 {[%emt 0:00:25]} Nb5 {[%emt 0:01:20]} 41. Bd1 {[%emt 0:14:47]} Nxd4 {[%emt 0:03:12]} 42. exd4 {[%emt 0:00:08]} Ba4 {[%emt 0:01:15]} 43. Bxa4 {[%emt 0:03:38]} Rxa4 {[%emt 0:00:18]} 44. Rb2 {[%emt 0:00:04]} Rxa5 {[%emt 0:01:50]} 45. Rb7 {[%emt 0:00:08]} Ke6 {[%emt 0:00:25]} 46. Rb6+ {[%emt 0:00:22]} Kd7 {[%emt 0:00:36]} 47. Rb7+ {[%emt 0:00:17]} Ke6 {[%emt 0:00:05]} 48. Rb6+ {[%emt 0:00:39]} Kd7 {[%emt 0:00:03]} 49. Rb7+ {[%emt 0:01:38]} 1/2-1/2

[Event "FIDE WSTC Open 50 2025"]
[Site "Prague"]
[Date "2025.02.18"]
[Round "2.36"]
[White "Mengerink, Ynze"]
[Black "Krizsany, Laszlo"]
[Result "0-1"]
[Annotator "ChessBase"]
[ECO "B02"]
[WhiteElo "2101"]
[BlackElo "2303"]
[PlyCount "102"]
[EventDate "2025.02.17"]
[EventType "team-tourn"]
[EventCountry "CZE"]
[SourceTitle "playchess.com"]
[Source "ChessBase"]
[SourceQuality "1"]
[TimeControl "40/5400+30:1800+30"]

1. e4 {[%emt 0:00:07]} Nf6 {[%emt 0:00:08]} 2. Nc3 {[%emt 0:00:16]} d5 {[%emt 0:00:08]} 3. e5 {[%emt 0:00:17]} Ne4 {[%emt 0:00:08]} 4. Nce2 {[%emt 0:00:17]} d4 {[%emt 0:00:40]} 5. c3 {[%emt 0:01:53]} Nc6 {[%emt 0:00:27]} 6. Nf3 {[%emt 0:08:00]} Bg4 {[%emt 0:03:58]} 7. Nexd4 {[%emt 0:07:11]} Nxe5 {[%emt 0:05:33]} 8. Qa4+ {[%emt 0:09:25]} Bd7 {[%emt 0:03:03]} 9. Bb5 {[%emt 0:14:06]} Nd3+ {[%emt 0:03:39]} 10. Ke2 {[%emt 0:01:55]} Nf4+ {[%emt 0:16:03]} 11. Kf1 {[%emt 0:07:22]} Nd6 {[%emt 0:06:13]} 12. Bxd7+ {[%emt 0:05:29]} Qxd7 {[%emt 0:00:23]} 13. Qxd7+ {[%emt 0:00:40]} Kxd7 {[%emt 0:00:03]} 14. Ne5+ {[%emt 0:00:28]} Ke8 {[%emt 0:01:49]} 15. d3 {[%emt 0:00:17]} Ng6 {[%emt 0:06:11]} 16. Nc4 {[%emt 0:04:57]} Nxc4 {[%emt 0:08:18]} 17. dxc4 {[%emt 0:00:59]} e5 {[%emt 0:01:56]} 18. Nf5 {[%emt 0:07:23]} Kd7 {[%emt 0:03:17]} 19. g3 {[%emt 0:07:48]} Ke6 {[%emt 0:01:03]} 20. Ne3 {[%emt 0:00:05]} Rd8 {[%emt 0:08:54]} 21. Ke2 {[%emt 0:00:46]} f5 {[%emt 0:02:28]} 22. b4 {[%emt 0:05:34]} Be7 {[%emt 0:02:43]} 23. Nd5 {[%emt 0:01:43]} Rd7 {[%emt 0:02:14]} 24. Nxe7 {[%emt 0:01:02]} Nxe7 {[%emt 0:00:47]} 25. Be3 {[%emt 0:01:49]} Rhd8 {[%emt 0:01:16]} 26. Rad1 {[%emt 0:00:13]} Nc8 {[%emt 0:01:46]} 27. Rxd7 {[%emt 0:03:36]} Rxd7 {[%emt 0:00:06]} 28. Rd1 {[%emt 0:00:15]} Rxd1 {[%emt 0:05:52]} 29. Kxd1 {[%emt 0:00:03]} a6 {[%emt 0:04:22]} 30. Kd2 {[%emt 0:01:07]} Nd6 {[%emt 0:01:26]} 31. Kd3 {[%emt 0:01:23]} Nf7 {[%emt 0:01:24]} 32. c5 {[%emt 0:02:14]} c6 {[%emt 0:01:26]} 33. c4 {[%emt 0:01:47]} g5 {[%emt 0:00:25]} 34. f3 {[%emt 0:01:25]} h5 {[%emt 0:01:06]} 35. h4 {[%emt 0:03:11]} gxh4 {[%emt 0:02:33]} 36. gxh4 {[%emt 0:00:04]} f4 {[%emt 0:00:06]} 37. Bf2 {[%emt 0:01:45]} Nh6 {[%emt 0:00:11]} 38. Be1 {[%emt 0:01:15]} Nf5 {[%emt 0:02:09]} 39. Bf2 {[%emt 0:00:19]} Kf6 {[%emt 0:01:58]} 40. Be1 {[%emt 0:00:34]} Ke6 {[%emt 0:01:35]} 41. Bf2 {[%emt 0:31:26]} Ne7 {[%emt 0:30:50]} 42. Ke4 {[%emt 0:00:00]} Ng8 {[%emt 0:00:00]} 43. Be1 {[%emt 0:00:00]} Nf6+ {[%emt 0:00:00]} 44. Kd3 {[%emt 0:00:00]} Kf5 {[%emt 0:00:00]} 45. Bc3 {[%emt 0:00:00]} e4+ {[%emt 0:00:00]} 46. fxe4+ {[%emt 0:00:00]} Nxe4 {[%emt 0:00:00]} 47. Bd4 {[%emt 0:00:00]} Ng3 {[%emt 0:00:00]} 48. Bc3 {[%emt 0:00:00]} Kg4 {[%emt 0:00:00]} 49. Bf6 {[%emt 0:00:00]} Kf3 {[%emt 0:00:00]} 50. Bg5 {[%emt 0:00:00]} Nf5 {[%emt 0:00:00]} 51. Bf6 {[%emt 0:00:00]} Kg2 {[%emt 0:00:00]} 0-1

[Event "FIDE WSTC Open 50 2025"]
[Site "Prague"]
[Date "2025.02.18"]
[Round "2.37"]
[White "Olivier, Pierre"]
[Black "Svensson, Bengt"]
[Result "1/2-1/2"]
[Annotator "ChessBase"]
[ECO "D26"]
[WhiteElo "2152"]
[BlackElo "2297"]
[PlyCount "47"]
[EventDate "2025.02.17"]
[EventType "team-tourn"]
[EventCountry "CZE"]
[SourceTitle "playchess.com"]
[Source "ChessBase"]
[SourceQuality "1"]
[TimeControl "40/5400+30:1800+30"]

1. d4 {[%emt 0:00:09]} d5 {[%emt 0:00:25]} 2. c4 {[%emt 0:00:14]} dxc4 {[%emt 0:00:40]} 3. Nf3 {[%emt 0:00:18]} Nf6 {[%emt 0:00:38]} 4. e3 {[%emt 0:00:17]} e6 {[%emt 0:00:15]} 5. Bxc4 {[%emt 0:00:26]} a6 {[%emt 0:00:17]} 6. O-O {[%emt 0:01:48]} c5 {[%emt 0:02:00]} 7. Be2 {[%emt 0:03:25]} Nc6 {[%emt 0:02:23]} 8. Ne5 {[%emt 0:03:43]} cxd4 {[%emt 0:06:59]} 9. Nxc6 {[%emt 0:00:09]} bxc6 {[%emt 0:00:03]} 10. exd4 {[%emt 0:00:22]} Be7 {[%emt 0:00:49]} 11. Qa4 {[%emt 0:07:50]} Bd7 {[%emt 0:03:46]} 12. Qc2 {[%emt 0:02:38]} Qb6 {[%emt 0:05:27]} 13. Nd2 {[%emt 0:18:02]} Qxd4 {[%emt 0:05:25]} 14. Nb3 {[%emt 0:04:54]} Qe4 {[%emt 0:08:44]} 15. Qxe4 {[%emt 0:06:54]} Nxe4 {[%emt 0:00:49]} 16. Be3 {[%emt 0:00:16]} Nf6 {[%emt 0:03:20]} 17. Nc5 {[%emt 0:06:56]} a5 {[%emt 0:06:11]} 18. Nxd7 {[%emt 0:02:34]} Kxd7 {[%emt 0:00:57]} 19. Bd4 {[%emt 0:02:47]} Rhg8 {[%emt 0:03:09]} 20. Bxf6 {[%emt 0:00:48]} Bxf6 {[%emt 0:00:07]} 21. Rfd1+ {[%emt 0:00:47]} Ke7 {[%emt 0:01:32]} 22. Rac1 {[%emt 0:04:54]} Rgd8 {[%emt 0:04:36]} 23. b3 {[%emt 0:01:54]} Rxd1+ {[%emt 0:02:33]} 24. Rxd1 {[%emt 0:00:58]} 1/2-1/2

[Event "FIDE WSTC Open 50 2025"]
[Site "Prague"]
[Date "2025.02.18"]
[Round "2.38"]
[White "Svenn, Gosta"]
[Black "Kirszenberg, Marc"]
[Result "1-0"]
[Annotator "ChessBase"]
[ECO "A03"]
[WhiteElo "2290"]
[BlackElo "2080"]
[PlyCount "73"]
[EventDate "2025.02.17"]
[EventType "team-tourn"]
[EventCountry "CZE"]
[SourceTitle "playchess.com"]
[Source "ChessBase"]
[SourceQuality "1"]
[TimeControl "40/5400+30:1800+30"]

1. f4 {[%emt 0:00:10]} d5 {[%emt 0:00:21]} 2. e3 {[%emt 0:00:10]} Nf6 {[%emt 0:00:09]} 3. Nf3 {[%emt 0:00:06]} Bf5 {[%emt 0:00:28]} 4. b3 {[%emt 0:01:07]} e6 {[%emt 0:00:11]} 5. Bb2 {[%emt 0:00:26]} Be7 {[%emt 0:00:43]} 6. Be2 {[%emt 0:06:48]} h6 {[%emt 0:01:42]} 7. O-O {[%emt 0:00:34]} O-O {[%emt 0:01:17]} 8. Ne5 {[%emt 0:03:33]} Nbd7 {[%emt 0:01:30]} 9. Bf3 {[%emt 0:09:20]} c6 {[%emt 0:07:11]} 10. Nc3 {[%emt 0:01:59]} Nxe5 11. fxe5 Nd7 12. Ne2 Qc7 13. d4 Qb6 14. Kh1 a5 15. a4 Bh7 16. Nf4 c5 17. Ba3 Rae8 {[%emt 0:57:19]} 18. Be2 {[%emt 0:32:15]} cxd4 {[%emt 0:01:55]} 19. Bxe7 {[%emt 0:00:51]} Rxe7 {[%emt 0:00:04]} 20. exd4 {[%emt 0:00:09]} Nb8 {[%emt 0:01:45]} 21. Bd3 {[%emt 0:08:01]} Bxd3 {[%emt 0:07:13]} 22. Qxd3 {[%emt 0:00:06]} Nc6 {[%emt 0:00:50]} 23. Rad1 {[%emt 0:00:14]} Rc8 {[%emt 0:06:05]} 24. Nh5 {[%emt 0:06:56]} Qd8 {[%emt 0:01:55]} 25. Nf6+ {[%emt 0:13:34]} gxf6 {[%emt 0:00:11]} 26. Qg3+ {[%emt 0:00:28]} Kf8 {[%emt 0:01:51]} 27. exf6 {[%emt 0:00:07]} Rec7 {[%emt 0:00:07]} 28. c4 {[%emt 0:06:52]} b6 {[%emt 0:05:09]} 29. c5 {[%emt 0:00:54]} bxc5 {[%emt 0:01:12]} 30. dxc5 {[%emt 0:00:28]} Nb4 {[%emt 0:01:07]} 31. Qg7+ {[%emt 0:01:16]} Ke8 {[%emt 0:00:01]} 32. Qg8+ {[%emt 0:00:08]} Kd7 {[%emt 0:00:05]} 33. Qxf7+ {[%emt 0:00:05]} Kc6 {[%emt 0:00:03]} 34. Qxe6+ {[%emt 0:00:13]} Kxc5 {[%emt 0:00:54]} 35. Rc1+ {[%emt 0:01:56]} Kd4 {[%emt 0:00:05]} 36. Rf4+ {[%emt 0:00:44]} Kd3 {[%emt 0:00:15]} 37. Rf3+ {[%emt 0:00:19]} 1-0

[Event "FIDE WSTC Open 50 2025"]
[Site "Prague"]
[Date "2025.02.18"]
[Round "2.39"]
[White "Guiot Dorel, Jerome"]
[Black "Jaderberg, Bjorn"]
[Result "1/2-1/2"]
[Annotator "NA"]
[ECO "A40"]
[WhiteElo "2030"]
[BlackElo "2134"]
[PlyCount "38"]
[EventDate "2025.02.17"]
[EventType "team-tourn"]
[EventCountry "CZE"]
[SourceTitle "playchess.com"]
[Source "ChessBase"]
[SourceQuality "1"]
[TimeControl "40/5400+30:1800+30"]

1. d4 {[%emt 0:00:07]} e6 {[%emt 0:00:14]} 2. Bf4 {[%emt 0:00:45]} f5 {[%emt 0:00:29]} 3. Nf3 {[%emt 0:01:13]} Nf6 {[%emt 0:00:30]} 4. e3 {[%emt 0:00:46]} b6 {[%emt 0:00:32]} 5. h3 {[%emt 0:01:52]} Bd6 {[%emt 0:00:35]} 6. Bxd6 {[%emt 0:04:30]} cxd6 {[%emt 0:00:18]} 7. Be2 {[%emt 0:01:26]} Bb7 {[%emt 0:00:18]} 8. O-O {[%emt 0:01:22]} O-O {[%emt 0:00:33]} 9. c4 {[%emt 0:02:35]} d5 {[%emt 0:10:16]} 10. Nbd2 {[%emt 0:04:16]} Ne4 {[%emt 0:01:14]} 11. cxd5 {[%emt 0:11:19]} Bxd5 {[%emt 0:05:20]} 12. Nxe4 {[%emt 0:00:19]} fxe4 {[%emt 0:07:03]} 13. Nd2 {[%emt 0:02:49]} Nc6 {[%emt 0:00:32]} 14. Bc4 {[%emt 0:08:45]} Bxc4 {[%emt 0:02:25]} 15. Nxc4 {[%emt 0:00:09]} d5 {[%emt 0:00:22]} 16. Nd2 {[%emt 0:03:37]} Qe7 {[%emt 0:05:55]} 17. a3 {[%emt 0:03:11]} Rf6 {[%emt 0:06:26]} 18. Rc1 {[%emt 0:03:29]} Qd6 {[%emt 0:07:23]} 19. f4 {[%emt 0:08:35]} exf3 {[%emt 0:01:08]} 1/2-1/2

[Event "FIDE WSTC Open 50 2025"]
[Site "Prague"]
[Date "2025.02.18"]
[Round "2.40"]
[White "Wengholm, Anders"]
[Black "Coste, Thierry"]
[Result "0-1"]
[Annotator "NA"]
[ECO "A05"]
[WhiteElo "2132"]
[BlackElo "2027"]
[PlyCount "58"]
[EventDate "2025.02.17"]
[EventType "team-tourn"]
[EventCountry "CZE"]
[SourceTitle "playchess.com"]
[Source "ChessBase"]
[SourceQuality "1"]
[TimeControl "40/5400+30:1800+30"]

1. Nf3 {[%emt 0:00:05]} Nf6 {[%emt 0:00:44]} 2. c4 {[%emt 0:01:35]} e6 {[%emt 0:00:30]} 3. g3 {[%emt 0:02:56]} d5 {[%emt 0:00:29]} 4. Bg2 {[%emt 0:00:59]} Be7 {[%emt 0:00:36]} 5. d4 {[%emt 0:00:52]} O-O {[%emt 0:00:32]} 6. O-O {[%emt 0:00:08]} dxc4 {[%emt 0:00:39]} 7. Qc2 {[%emt 0:00:40]} a6 {[%emt 0:01:13]} 8. a4 {[%emt 0:00:50]} Bd7 {[%emt 0:00:59]} 9. Rd1 {[%emt 0:00:46]} Bc6 {[%emt 0:00:46]} 10. Nc3 {[%emt 0:00:58]} Bxf3 {[%emt 0:07:18]} 11. Bxf3 {[%emt 0:00:11]} Nc6 {[%emt 0:00:41]} 12. Bxc6 {[%emt 0:01:21]} bxc6 {[%emt 0:00:15]} 13. a5 {[%emt 0:01:38]} c5 {[%emt 0:11:16]} 14. dxc5 {[%emt 0:01:44]} Qe8 {[%emt 0:00:26]} 15. Ra4 {[%emt 0:04:05]} Bxc5 {[%emt 0:06:42]} 16. Rxc4 {[%emt 0:00:19]} Qe7 {[%emt 0:02:35]} 17. Bg5 {[%emt 0:02:35]} Rfd8 {[%emt 0:06:23]} 18. Rxd8+ {[%emt 0:01:52]} Rxd8 {[%emt 0:00:10]} 19. Ne4 {[%emt 0:02:01]} Bd4 {[%emt 0:07:08]} 20. Rxc7 {[%emt 0:06:52]} Qb4 {[%emt 0:00:40]} 21. Bd2 {[%emt 0:49:37]} Qb8 {[%emt 0:14:49]} 22. Nxf6+ {[%emt 0:05:42]} gxf6 {[%emt 0:00:43]} 23. b4 {[%emt 0:04:47]} Kg7 {[%emt 0:03:05]} 24. Be1 {[%emt 0:03:22]} h5 {[%emt 0:01:00]} 25. Qc6 {[%emt 0:01:23]} h4 {[%emt 0:02:20]} 26. e3 {[%emt 0:01:04]} Be5 {[%emt 0:02:45]} 27. Rb7 {[%emt 0:00:12]} Rd6 {[%emt 0:07:10]} 28. Rxb8 {[%emt 0:00:59]} Rxc6 {[%emt 0:00:05]} 29. f4 {[%emt 0:00:45]} Bxb8 {[%emt 0:00:14]} 0-1